bitfinex/quotes_BTCUSD_20240905
["timestamp","ask_amount","ask_price","bid_price","bid_amount"]
[1725547232139,0.03221018,57193.0,57192.0,0.00162]
[1725547232382,0.014,57193.0,57192.0,0.176469]
[1725547232604,0.349655,57200.0,57193.0,0.174843]
[1725547232815,0.17483,57199.0,57193.0,0.174843]
[1725547233029,0.349639,57202.0,57192.0,0.00162]
[1725547233030,0.174832,57198.0,57192.0,0.176467]
[1725547233240,0.174835,57197.0,57192.0,0.176467]
[1725547233654,0.17483,57199.0,57194.0,0.174842]
[1725547233877,0.36783378,57200.0,57192.0,0.00162]
[1725547234080,0.349657,57199.0,57192.0,0.00162]
[1725547234287,0.174832,57198.0,57193.0,0.174844]
[1725547234501,0.349636,57203.0,57194.0,0.349683]
[1725547234710,0.349644,57201.0,57195.0,0.174837]
[1725547234941,0.1,57202.0,57192.0,0.00162]
[1725547234942,0.174844,57194.0,57192.0,0.00162]
[1725547235150,0.001,57193.0,57192.0,0.180469]
[1725547235566,0.174837,57196.0,57192.0,0.00162]
[1725547235989,0.17484,57195.0,57194.0,0.003]
[1725547236448,0.349656,57199.0,57192.0,0.00162]
[1725547236673,0.000816,57200.0,57192.0,0.00162]
[1725547236674,0.699386,57193.0,57192.0,0.00162]
[1725547236922,0.875232,57193.0,57192.0,0.00462]
[1725547237151,1.224925,57193.0,57192.0,0.00462]
[1725547237386,1.23122369,57193.0,57192.0,0.00462]
[1725547238812,1.23022369,57193.0,57192.0,0.00162]
[1725547239498,1.23022369,57193.0,57192.0,0.01162]
[1725547241212,0.00629869,57193.0,57192.0,0.13962]
[1725547241430,0.00825942,57193.0,57192.0,0.428769]
[1725547241889,0.000816,57200.0,57196.0,0.174835]
[1725547242104,0.000816,57200.0,57194.0,0.1342]
[1725547242321,0.174837,57196.0,57194.0,0.1342]
[1725547242528,0.174834,57197.0,57194.0,0.1342]
[1725547244930,0.174832,57198.0,57194.0,0.308042]
[1725547245136,0.17484,57195.0,57194.0,0.1332]
[1725547245607,0.874232,57193.0,57192.0,0.00162]
[1725547245817,1.53033034,57193.0,57192.0,0.00162]
[1725547247094,1.53133034,57193.0,57192.0,0.00662]
[1725547247718,0.875232,57193.0,57192.0,0.00662]
[1725547249063,0.525539,57193.0,57192.0,0.00662]
[1725547249743,1.18163734,57193.0,57192.0,0.00662]
[1725547249958,1.19952176,57193.0,57192.0,0.00662]
[1725547250198,1.54921476,57193.0,57192.0,0.00662]
[1725547250666,1.76021476,57193.0,57192.0,0.00662]
[1725547250871,2.67331776,57193.0,57192.0,0.00662]
[1725547251304,1.64921476,57193.0,57192.0,0.00662]
[1725547251512,2.22816076,57193.0,57192.0,0.00662]
[1725547252353,2.23529591,57193.0,57192.0,0.00162]
[1725547252561,2.22529591,57193.0,57192.0,0.00162]
[1725547252783,2.00401357,57193.0,57192.0,0.00162]
[1725547252991,2.31041891,57193.0,57192.0,0.00162]
[1725547253232,2.30841891,57193.0,57192.0,0.00162]
[1725547253437,2.00604291,57193.0,57192.0,0.00162]
[1725547253654,2.01804291,57193.0,57192.0,0.00162]
[1725547253866,1.66834991,57193.0,57192.0,0.13952]
[1725547254077,1.65634991,57193.0,57192.0,0.13952]
[1725547254290,1.30665691,57193.0,57192.0,0.13952]
[1725547254528,0.55055857,57193.0,57192.0,0.13952]
[1725547254746,0.90025157,57193.0,57192.0,0.13952]
[1725547255610,0.90825157,57193.0,57192.0,0.13952]
[1725547256064,0.90025157,57193.0,57192.0,0.13952]
[1725547256289,0.90025157,57193.0,57192.0,0.00162]
[1725547256534,0.55655857,57193.0,57192.0,0.00162]
[1725547256790,0.01413515,57193.0,57192.0,0.665268]
[1725547257031,0.01413515,57193.0,57192.0,1.149567]
[1725547257271,0.006,57193.0,57192.0,1.499266]
[1725547257987,0.006,57193.0,57192.0,1.149567]
[1725547258742,0.174829,57199.0,57195.0,0.174838]
[1725547258989,0.175641,57200.0,57196.0,0.174836]
[1725547259248,0.000816,57200.0,57195.0,0.349676]
[1725547259504,0.000816,57200.0,57198.0,0.17483]
[1725547259785,0.000816,57200.0,57196.0,0.1348]
[1725547260033,0.000816,57200.0,57197.0,0.174833]
[1725547260274,0.000816,57200.0,57199.0,0.1323]
[1725547260548,0.000816,57200.0,57199.0,0.765884]
[1725547260800,0.875941,57200.0,57199.0,0.2414]
[1725547261050,0.001816,57200.0,57199.0,0.2414]
[1725547261298,0.001816,57200.0,57199.0,0.416228]
[1725547261576,0.001816,57200.0,57199.0,1.11554]
[1725547261813,0.001816,57200.0,57199.0,1.488196]
[1725547262047,0.000816,57200.0,57199.0,1.488196]
[1725547262282,0.001816,57200.0,57199.0,1.488196]
[1725547262775,0.000816,57200.0,57199.0,1.837852]
[1725547263008,0.000816,57200.0,57199.0,1.854852]
[1725547263245,0.001816,57200.0,57199.0,1.854852]
[1725547263548,0.4761,57229.0,57224.0,0.134]
[1725547263810,0.52650515,57225.0,57224.0,0.658248]
[1725547264071,0.174735,57230.0,57226.0,0.174743]
[1725547264327,0.34946,57232.0,57224.0,0.483497]
[1725547264586,0.349432,57236.0,57221.0,0.349516]
[1725547264587,0.01816349,57234.0,57225.0,0.14179472]
[1725547264870,0.174729,57232.0,57228.0,0.1383]
[1725547265138,0.349425,57237.0,57228.0,0.1383]
[1725547265394,0.78250534,57241.0,57228.0,0.1383]
[1725547265395,0.524209,57229.0,57228.0,0.1383]
[1725547265659,0.4761,57241.0,57228.0,0.1383]
[1725547265925,0.001,57229.0,57228.0,0.656718]
[1725547266187,0.001,57229.0,57228.0,1.006197]
[1725547266440,0.30640534,57244.0,57236.0,0.1333]
[1725547266441,0.349388,57243.0,57236.0,0.1333]
[1725547266687,0.30640534,57244.0,57236.0,0.1333]
[1725547266688,0.174704,57240.0,57236.0,0.1333]
[1725547266913,0.174704,57240.0,57236.0,0.307014]
[1725547267118,0.35767358,57242.0,57236.0,0.307014]
[1725547267119,0.00827658,57242.0,57236.0,0.1323]
[1725547267357,0.18298558,57239.0,57236.0,0.1323]
[1725547267576,0.1747,57241.0,57236.0,0.307012]
[1725547267794,0.349389,57243.0,57236.0,0.307012]
[1725547267795,0.00827658,57238.0,57236.0,0.1323]
[1725547268011,0.01826986,57244.0,57228.0,0.483677]
[1725547268012,0.349456,57232.0,57228.0,0.1112]
[1725547268232,0.349473,57229.0,57228.0,0.1112]
[1725547268498,0.30640534,57232.0,57221.0,0.1095]
[1725547268709,0.30640534,57232.0,57222.0,0.174756]
[1725547268710,0.174746,57226.0,57222.0,0.174756]
[1725547268926,0.174753,57224.0,57221.0,0.1095]
[1725547269142,0.00827658,57225.0,57221.0,0.1095]
[1725547269361,0.174743,57227.0,57222.0,0.174756]
[1725547269573,0.349461,57231.0,57221.0,0.1095]
[1725547269880,0.349461,57231.0,57223.0,0.174752]
[1725547269881,0.349475,57229.0,57223.0,0.174752]
[1725547270099,0.174744,57227.0,57222.0,0.1361]
[1725547270314,0.349509,57223.0,57222.0,0.1361]
[1725547270521,0.873772,57223.0,57222.0,0.1361]
[1725547270740,0.524263,57223.0,57222.0,0.1461]
[1725547270952,1.223281,57223.0,57222.0,0.01]
[1725547271613,0.873772,57223.0,57222.0,0.01]
[1725547271833,1.223281,57223.0,57222.0,0.01]
[1725547272043,0.52431,57218.0,57217.0,0.1312]
[1725547272476,0.17477,57218.0,57217.0,0.1312]
[1725547272681,0.174761,57221.0,57217.0,0.1312]
[1725547272956,0.174765,57220.0,57217.0,0.1312]
[1725547273169,0.001,57223.0,57217.0,0.1312]
[1725547273388,0.17477,57219.0,57217.0,0.1312]
[1725547273625,0.52431,57218.0,57217.0,0.1312]
[1725547273839,0.17477,57218.0,57217.0,0.1312]
[1725547274046,0.52431,57218.0,57217.0,0.1402]
[1725547274262,0.87385,57218.0,57217.0,0.1402]
[1725547274480,1.22339,57218.0,57217.0,0.009]
[1725547275544,1.22339,57218.0,57211.0,0.2402]
[1725547275545,0.524365,57212.0,57211.0,0.2402]
[1725547275758,0.873942,57212.0,57211.0,0.1332]
[1725547275970,0.52441,57207.0,57206.0,0.1062]
[1725547276604,0.349593,57210.0,57206.0,0.2418]
[1725547276819,0.30640534,57212.0,57206.0,0.2418]
[1725547276820,0.349581,57212.0,57206.0,0.2418]
[1725547277033,0.001,57218.0,57208.0,0.174799]
[1725547277262,0.19228271,57212.0,57208.0,0.174798]
[1725547277481,0.174789,57212.0,57208.0,0.174798]
[1725547277691,0.174792,57211.0,57207.0,0.174803]
[1725547278116,0.174793,57211.0,57207.0,0.174803]
[1725547278339,0.34956,57215.0,57210.0,0.174794]
[1725547278563,0.01775462,57218.0,57217.0,0.174773]
[1725547278820,0.78250534,57232.0,57219.0,0.34953]
[1725547279039,0.78250534,57232.0,57221.0,0.137]
[1725547279040,0.34948,57228.0,57221.0,0.137]
[1725547279261,0.349494,57226.0,57221.0,0.136]
[1725547279477,0.30640534,57232.0,57222.0,0.349514]
[1725547279696,0.174741,57228.0,57221.0,0.136]
[1725547279927,0.174741,57228.0,57224.0,0.17475]
[1725547280183,0.349466,57231.0,57221.0,0.136]
[1725547280416,0.00823599,57227.0,57223.0,0.349509]
[1725547280664,0.349462,57231.0,57214.0,0.30640534]
[1725547280665,0.01761345,57231.0,57226.0,0.34949]
[1725547280892,0.174741,57228.0,57222.0,0.349511]
[1725547281128,0.175739,57228.0,57224.0,0.17475]
[1725547281393,0.001,57228.0,57227.0,0.628227]
[1725547281631,0.001,57228.0,57227.0,1.000712]
[1725547282158,0.001,57228.0,57227.0,1.699682]
[1725547282410,0.350197,57244.0,57237.0,0.349423]
[1725547282728,0.174706,57239.0,57238.0,0.2474]
[1725547282761,0.524118,57239.0,57238.0,0.2474]
[1725547283133,0.00825842,57243.0,57233.0,0.349447]
[1725547283134,0.174721,57234.0,57233.0,0.1385]
[1725547283348,0.524163,57234.0,57233.0,0.1385]
[1725547283560,0.174721,57234.0,57233.0,0.1385]
[1725547283776,0.00827503,57234.0,57233.0,0.1385]
[1725547284003,0.000815,57239.0,57238.0,0.174709]
[1725547284222,0.000815,57239.0,57238.0,0.1353]
[1725547284435,0.000815,57239.0,57238.0,0.659427]
[1725547284646,0.000815,57239.0,57238.0,0.310009]
[1725547284863,0.000815,57239.0,57238.0,0.659427]
[1725547285076,0.000815,57239.0,57238.0,0.1353]
[1725547285792,0.000815,57239.0,57238.0,0.1343]
[1725547286462,0.000815,57239.0,57238.0,0.658427]
[1725547286722,0.001815,57239.0,57238.0,0.1393]
[1725547286967,0.001815,57239.0,57238.0,0.314009]
[1725547287697,0.001815,57239.0,57238.0,0.1393]
[1725547287949,0.001815,57239.0,57238.0,0.314009]
[1725547288208,0.001815,57239.0,57238.0,0.1393]
[1725547288425,0.001815,57239.0,57238.0,0.314009]
[1725547288654,0.001815,57239.0,57238.0,0.1393]
[1725547288869,0.001815,57239.0,57238.0,1.14263889]
[1725547289168,0.001815,57239.0,57238.0,1.49205689]
[1725547289382,0.001815,57239.0,57238.0,1.488563]
[1725547289619,0.000815,57239.0,57238.0,1.483563]
[1725547290136,0.001815,57239.0,57238.0,1.489563]
[1725547290471,0.000815,57239.0,57238.0,1.483563]
[1725547290858,0.001815,57239.0,57238.0,1.490563]
[1725547291340,0.001815,57239.0,57238.0,0.791727]
[1725547291585,0.001815,57239.0,57238.0,0.768727]
[1725547292004,0.01014877,57239.0,57238.0,0.768727]
[1725547292221,0.18485477,57239.0,57238.0,0.2446]
[1725547292446,0.176521,57239.0,57238.0,0.2446]
[1725547292683,0.0101522,57239.0,57238.0,0.419309]
[1725547292911,0.0101522,57239.0,57238.0,0.768727]
[1725547293155,0.001815,57239.0,57238.0,0.768727]
[1725547293379,0.0101522,57239.0,57238.0,1.118145]
[1725547293611,0.001815,57239.0,57238.0,1.118145]
[1725547293843,0.001815,57239.0,57238.0,1.141145]
[1725547295676,0.001815,57239.0,57238.0,0.442309]
[1725547296097,0.0101522,57239.0,57238.0,0.419309]
[1725547296344,0.001815,57239.0,57238.0,0.419309]
[1725547296561,0.1848582,57239.0,57238.0,0.2446]
[1725547296785,0.8836822,57239.0,57238.0,0.1413]
[1725547297004,0.1848582,57239.0,57238.0,0.1413]
[1725547297220,0.5342702,57239.0,57238.0,0.1413]
[1725547297435,0.1848582,57239.0,57238.0,0.1413]
[1725547297852,0.5342702,57239.0,57238.0,0.1413]
[1725547298059,0.8836822,57239.0,57238.0,0.1413]
[1725547298281,0.5342702,57239.0,57238.0,0.1343]
[1725547298498,0.1838582,57239.0,57238.0,0.1343]
[1725547298707,0.0091522,57239.0,57238.0,0.1343]
[1725547299126,0.1838582,57239.0,57238.0,0.1343]
[1725547299343,0.1848582,57239.0,57238.0,0.1453]
[1725547300498,0.5342702,57239.0,57238.0,0.1453]
[1725547301169,0.1848582,57239.0,57238.0,0.1453]
[1725547301830,0.20255706,57239.0,57238.0,0.1453]
[1725547302120,0.55196906,57239.0,57238.0,0.1453]
[1725547302355,0.90138106,57239.0,57238.0,0.011]
[1725547302577,1.80490506,57239.0,57238.0,0.011]
[1725547303430,2.16431706,57239.0,57238.0,0.011]
[1725547303649,0.87385,57218.0,57217.0,0.001628]
[1725547303865,1.22339,57218.0,57217.0,0.001628]
[1725547304080,0.88217944,57218.0,57217.0,0.001628]
[1725547305202,0.62495434,57218.0,57217.0,0.001628]
[1725547305922,0.79972434,57218.0,57217.0,0.001628]
[1725547306361,0.80072434,57218.0,57217.0,0.011628]
[1725547306578,1.15026434,57218.0,57217.0,0.011628]
[1725547306799,1.35216434,57218.0,57217.0,0.011628]
[1725547307450,1.15026434,57218.0,57217.0,0.011628]
[1725547307663,1.16703625,57218.0,57217.0,0.001628]
[1725547308079,1.16803625,57218.0,57217.0,0.001628]
[1725547308834,0.81849625,57218.0,57217.0,0.001628]
[1725547309045,0.81849625,57218.0,57217.0,0.131228]
[1725547309694,0.81849625,57218.0,57217.0,0.001628]
[1725547310906,0.20087135,57218.0,57217.0,0.001628]
[1725547311169,0.00932944,57218.0,57217.0,0.001628]
[1725547311607,0.001,57218.0,57217.0,0.001628]
[1725547312043,0.00924074,57218.0,57217.0,0.176401]
[1725547312256,0.001,57218.0,57217.0,0.176401]
[1725547312465,0.001,57218.0,57217.0,0.525947]
[1725547312676,0.00924074,57218.0,57217.0,0.176401]
[1725547312882,0.001,57218.0,57217.0,0.176401]
[1725547313476,0.001,57218.0,57217.0,1.018193]
[1725547313719,0.00924074,57218.0,57217.0,1.018193]
[1725547313930,0.001,57218.0,57217.0,0.144328]
[1725547314350,0.88309074,57218.0,57217.0,0.001628]
[1725547314564,1.22439,57218.0,57217.0,0.001628]
[1725547314771,1.23263074,57218.0,57217.0,0.001628]
[1725547315623,0.88309074,57218.0,57217.0,0.001628]
[1725547316490,1.23263074,57218.0,57217.0,0.001628]
[1725547316698,0.174786,57213.0,57209.0,0.171423]
[1725547316906,0.524345,57215.0,57211.0,0.17479]
[1725547317117,0.174783,57214.0,57211.0,0.17479]
[1725547317349,0.174783,57214.0,57213.0,0.524355]
[1725547317350,0.00824074,57214.0,57213.0,0.524355]
[1725547317558,0.00824074,57214.0,57213.0,0.1338]
[1725547317763,0.00824074,57214.0,57213.0,0.308585]
[1725547317944,0.00824124,57214.0,57213.0,0.1338]
[1725547318159,0.174778,57216.0,57213.0,0.307584]
[1725547318383,0.00824124,57214.0,57213.0,0.1328]
[1725547318596,0.174778,57216.0,57213.0,0.1328]
[1725547318840,0.00824124,57214.0,57213.0,0.1328]
[1725547319062,0.174778,57216.0,57213.0,0.307585]
[1725547319316,0.00825112,57214.0,57213.0,0.307585]
[1725547319559,0.00925118,57214.0,57213.0,0.307585]
[1725547319778,0.001,57214.0,57213.0,0.657155]
[1725547319998,0.00925109,57214.0,57213.0,0.657155]
[1725547320221,0.001,57214.0,57213.0,1.006725]
[1725547320446,0.001,57214.0,57213.0,1.135725]
[1725547320447,0.00925109,57214.0,57213.0,1.135725]
[1725547320687,0.001,57214.0,57213.0,0.2388]
[1725547320997,0.174776,57216.0,57213.0,0.2388]
[1725547321125,0.349548,57217.0,57211.0,0.14003]
[1725547321126,0.524365,57212.0,57211.0,0.14003]
[1725547321360,0.873942,57212.0,57211.0,0.00163]
[1725547321836,0.8821915,57212.0,57211.0,0.00163]
[1725547322327,0.3578265,57212.0,57204.0,0.592223]
[1725547322565,0.0082495,57212.0,57205.0,0.023]
[1725547323018,0.1830385,57212.0,57208.0,0.174799]
[1725547323265,0.174791,57211.0,57208.0,0.174799]
[1725547323502,0.0082495,57211.0,57206.0,0.1366]
[1725547323756,0.0082495,57211.0,57210.0,0.660983]
[1725547324007,0.000815,57218.0,57217.0,0.311373]
[1725547324256,0.000815,57218.0,57217.0,1.009465]
[1725547324487,0.000815,57218.0,57217.0,1.485211]
[1725547325228,0.000815,57218.0,57217.0,1.833757]
[1725547325485,0.000815,57218.0,57217.0,1.835757]
[1725547325715,0.000815,57218.0,57217.0,1.843757]
[1725547326229,0.000815,57218.0,57217.0,0.785119]
[1725547326230,0.001815,57218.0,57217.0,0.785119]
[1725547326467,0.001815,57218.0,57217.0,1.134665]
[1725547327439,0.000815,57218.0,57217.0,1.134665]
[1725547327921,0.001815,57218.0,57217.0,1.490211]
[1725547328204,0.001815,57218.0,57217.0,1.500211]
[1725547328462,0.000815,57218.0,57217.0,1.514211]
[1725547328696,0.01766354,57238.0,57217.0,1.514211]
[1725547328697,0.000815,57239.0,57238.0,0.764527]
[1725547329649,0.000815,57239.0,57238.0,0.2404]
[1725547330359,0.00910983,57239.0,57238.0,0.2404]
[1725547330586,0.00911597,57239.0,57238.0,0.2404]
[1725547331609,0.00911597,57239.0,57238.0,0.415109]
[1725547331838,0.01011597,57239.0,57238.0,0.421109]
[1725547332074,0.01011597,57239.0,57238.0,0.2464]
[1725547333967,0.18482197,57239.0,57238.0,0.006]
[1725547334654,0.53423397,57239.0,57238.0,0.006]
[1725547335131,0.84063931,57239.0,57238.0,0.006]
[1725547335366,1.19005131,57239.0,57238.0,0.006]
[1725547335853,0.53423397,57239.0,57238.0,0.006]
[1725547336088,0.01011597,57239.0,57238.0,0.530127]
[1725547336309,0.01011597,57239.0,57238.0,0.879545]
[1725547336570,0.01011597,57239.0,57238.0,1.156045]
[1725547336791,0.001815,57239.0,57238.0,1.156045]
[1725547337266,0.001815,57239.0,57238.0,1.505463]
[1725547337500,0.001815,57239.0,57238.0,1.507463]
[1725547338350,0.001815,57239.0,57238.0,1.505463]
[1725547338793,0.001815,57239.0,57238.0,1.517463]
[1725547339007,0.001815,57239.0,57238.0,1.505463]
[1725547339661,0.001815,57239.0,57238.0,1.156045]
[1725547339878,0.001815,57239.0,57238.0,0.806627]
[1725547340339,0.000815,57239.0,57238.0,0.1427]
[1725547340785,0.01075984,57239.0,57238.0,0.1547]
[1725547341022,0.01075984,57239.0,57238.0,0.012]
[1725547341023,0.83233834,57239.0,57238.0,0.012]
[1725547341259,0.85945339,57239.0,57238.0,0.012]
[1725547341477,0.01078795,57239.0,57238.0,0.012]
[1725547341916,0.53490595,57239.0,57238.0,0.012]
[1725547342338,0.18549395,57239.0,57238.0,0.012]
[1725547342551,0.53490595,57239.0,57238.0,0.012]
[1725547342763,0.01078795,57239.0,57238.0,0.012]
[1725547343668,0.01078795,57239.0,57238.0,0.186709]
[1725547343970,0.01078795,57239.0,57238.0,1.14973849]
[1725547344199,0.001815,57239.0,57238.0,1.85057449]
[1725547344437,0.001815,57239.0,57238.0,1.855081]
[1725547345163,0.000815,57244.0,57243.0,1.845241]
[1725547345378,0.000815,57244.0,57243.0,2.3501573]
[1725547345598,0.000815,57244.0,57243.0,2.27464634]
[1725547348067,0.000815,57244.0,57243.0,2.28864634]
[1725547348326,0.000815,57244.0,57243.0,2.4641573]
[1725547348802,0.000815,57244.0,57243.0,2.28864634]
[1725547350165,0.000815,57244.0,57243.0,2.25664634]
[1725547350405,0.000815,57244.0,57243.0,2.28664634]
[1725547351059,0.000815,57244.0,57243.0,2.28864634]
[1725547351999,0.000815,57244.0,57243.0,2.63803334]
[1725547352881,0.000815,57244.0,57243.0,2.28864634]
[1725547356222,0.000815,57244.0,57243.0,2.26664634]
[1725547356435,0.000815,57244.0,57243.0,1.960241]
[1725547356647,0.000815,57244.0,57243.0,1.577854]
[1725547356877,0.000815,57244.0,57243.0,1.587854]
[1725547357083,0.000815,57244.0,57243.0,1.577854]
[1725547357720,0.000815,57244.0,57243.0,1.563854]
[1725547357948,0.000815,57244.0,57243.0,1.373854]
[1725547358169,0.000815,57244.0,57243.0,0.887467]
[1725547358385,0.000815,57244.0,57243.0,1.71225934]
[1725547358599,0.000815,57244.0,57243.0,2.17404634]
[1725547358830,0.000815,57244.0,57243.0,2.17604634]
[1725547359259,0.000815,57244.0,57243.0,2.29904634]
[1725547359554,0.000815,57244.0,57243.0,2.28504634]
[1725547359775,0.000815,57244.0,57243.0,2.63443334]
[1725547360222,0.000815,57244.0,57243.0,2.28504634]
[1725547360868,0.001815,57244.0,57243.0,2.29904634]
[1725547361293,0.000815,57244.0,57243.0,2.28504634]
[1725547361726,0.000815,57244.0,57243.0,2.29904634]
[1725547361727,0.001815,57244.0,57243.0,2.29904634]
[1725547363416,0.001815,57244.0,57243.0,1.91765934]
[1725547363637,0.001815,57244.0,57243.0,1.611254]
[1725547363877,0.001815,57244.0,57243.0,1.621254]
[1725547364515,0.001815,57244.0,57243.0,1.970641]
[1725547364738,0.001815,57244.0,57243.0,1.621254]
[1725547364963,0.001815,57244.0,57243.0,1.398854]
[1725547365651,0.001815,57244.0,57243.0,1.748241]
[1725547365860,0.001815,57244.0,57243.0,1.758241]
[1725547366072,0.001815,57244.0,57243.0,1.880241]
[1725547366314,0.001815,57244.0,57243.0,1.986341]
[1725547368492,0.001815,57244.0,57243.0,1.614954]
[1725547369436,0.001815,57244.0,57243.0,1.964341]
[1725547370116,0.001815,57244.0,57243.0,1.966341]
[1725547370776,0.001815,57244.0,57243.0,1.976341]
[1725547371415,0.001815,57244.0,57243.0,1.974341]
[1725547371828,0.001815,57244.0,57243.0,1.984341]
[1725547372668,0.001815,57244.0,57243.0,1.986341]
[1725547373097,0.001815,57244.0,57243.0,1.984341]
[1725547373335,0.001815,57244.0,57243.0,1.986341]
[1725547375437,0.001815,57244.0,57243.0,1.984341]
[1725547375667,0.001815,57244.0,57243.0,1.868241]
[1725547375871,0.001815,57244.0,57243.0,1.518854]
[1725547376087,0.001815,57244.0,57243.0,1.508854]
[1725547377874,0.001815,57244.0,57243.0,1.498854]
[1725547378116,0.001815,57244.0,57243.0,1.508854]
[1725547379030,0.001815,57244.0,57243.0,0.910467]
[1725547379275,0.001815,57244.0,57243.0,0.53808]
[1725547379511,0.633186,57244.0,57243.0,0.014]
[1725547379739,0.29538865,57244.0,57243.0,0.014]
[1725547379952,0.174703,57240.0,57239.0,0.001628]
[1725547380161,0.0115739,57240.0,57239.0,0.001628]
[1725547380394,0.0115739,57240.0,57239.0,1.22457]
[1725547380613,0.0115739,57240.0,57239.0,1.008258]
[1725547380873,0.001815,57244.0,57243.0,0.174693]
[1725547380874,0.000815,57244.0,57243.0,0.174693]
[1725547381320,0.000815,57244.0,57240.0,0.349403]
[1725547381536,0.000815,57244.0,57243.0,0.174693]
[1725547381753,0.000815,57244.0,57243.0,0.873467]
[1725547382195,0.000815,57244.0,57243.0,1.62622683]
[1725547382473,0.000815,57244.0,57243.0,1.97561383]
[1725547383126,0.001815,57244.0,57243.0,1.98961383]
[1725547384215,0.001815,57244.0,57243.0,1.99961383]
[1725547384681,0.20201679,57262.0,57243.0,1.99961383]
[1725547384682,0.000816,57264.0,57262.0,0.523906]
[1725547384931,0.000816,57264.0,57262.0,0.873177]
[1725547385198,0.000816,57264.0,57262.0,0.896177]
[1725547385449,0.000816,57264.0,57262.0,1.850119]
[1725547385664,0.000816,57264.0,57262.0,1.383348]
[1725547385890,0.000816,57264.0,57262.0,1.034077]
[1725547386304,0.26401813,57277.0,57268.0,0.349232]
[1725547386520,0.26401813,57277.0,57258.0,0.002]
[1725547386521,0.174643,57260.0,57249.0,0.5995]
[1725547386753,0.349243,57267.0,57262.0,0.003]
[1725547386983,0.30632453,57270.0,57262.0,0.003]
[1725547387220,0.1861691,57269.0,57264.0,0.174628]
[1725547387479,0.1861691,57269.0,57264.0,0.174629]
[1725547387691,0.177519,57268.0,57262.0,0.34927]
[1725547387904,0.0029,57268.0,57264.0,0.174628]
[1725547388123,0.01163038,57267.0,57262.0,0.523903]
[1725547388341,0.01163038,57267.0,57258.0,0.349291]
[1725547388546,0.01163038,57267.0,57264.0,0.174628]
[1725547388765,0.01163038,57267.0,57256.0,0.349304]
[1725547388965,0.01163038,57267.0,57265.0,0.174625]
[1725547389177,0.01163038,57267.0,57266.0,0.52387]
[1725547389432,0.225,57280.0,57266.0,0.023]
[1725547389673,0.225,57280.0,57275.0,0.523788]
[1725547389674,0.0029,57276.0,57275.0,0.523788]
[1725547390159,0.0029,57276.0,57275.0,0.174596]
[1725547390391,0.1279,57280.0,57279.0,0.174584]
[1725547390636,0.13953523,57280.0,57279.0,0.174584]
[1725547390864,0.13953523,57280.0,57277.0,0.174588]
[1725547391348,0.174584,57279.0,57275.0,0.174595]
[1725547391554,0.1279,57280.0,57278.0,0.174585]
[1725547391761,0.01163523,57279.0,57278.0,0.174585]
[1725547391984,0.01163523,57279.0,57276.0,0.17459]
[1725547392189,0.01163523,57279.0,57257.0,0.1328]
[1725547392190,0.0029,57278.0,57257.0,0.1328]
[1725547392395,0.0029,57268.0,57258.0,0.174647]
[1725547392612,0.349249,57266.0,57260.0,0.174639]
[1725547392819,0.174632,57263.0,57253.0,0.1328]
[1725547393043,0.01164251,57265.0,57258.0,0.349294]
[1725547393275,0.0029,57268.0,57257.0,0.349299]
[1725547393501,0.0029,57268.0,57263.0,0.174632]
[1725547393502,0.01164251,57264.0,57263.0,0.174632]
[1725547393726,0.177519,57268.0,57264.0,0.174629]
[1725547394217,0.177519,57268.0,57262.0,0.349269]
[1725547394218,0.174621,57267.0,57263.0,0.174632]
[1725547394457,0.0029,57268.0,57264.0,0.174629]
[1725547394458,0.177518,57268.0,57264.0,0.174629]
[1725547395167,0.17462,57267.0,57262.0,0.349269]
[1725547395387,0.0029,57268.0,57264.0,0.174628]
[1725547395821,0.177518,57268.0,57264.0,0.174628]
[1725547396027,0.17462,57267.0,57264.0,0.183628]
[1725547396479,0.0029,57268.0,57264.0,0.183628]
[1725547396766,0.177519,57268.0,57264.0,0.183628]
[1725547396996,0.0029,57268.0,57263.0,0.349261]
[1725547397213,0.0029,57268.0,57265.0,0.174624]
[1725547397918,0.349201,57274.0,57264.0,0.14519256]
[1725547397919,0.0029,57274.0,57264.0,0.14519256]
[1725547398135,0.0029,57279.0,57265.0,0.023]
[1725547398347,0.0029,57279.0,57277.0,0.174588]
[1725547398559,0.0029,57279.0,57272.0,0.349205]
[1725547398560,0.02087734,57279.0,57272.0,0.349205]
[1725547398772,0.174587,57278.0,57274.0,0.174598]
[1725547398984,0.174587,57278.0,57275.0,0.174595]
[1725547399220,0.0029,57279.0,57271.0,0.174608]
[1725547399221,0.174599,57274.0,57271.0,0.174608]
[1725547399921,0.349192,57275.0,57270.0,0.174609]
[1725547400415,0.30922453,57279.0,57266.0,0.174623]
[1725547400620,0.349215,57272.0,57268.0,0.174617]
[1725547400836,0.174605,57272.0,57269.0,0.174613]
[1725547401063,0.0029,57279.0,57264.0,0.1317]
[1725547401293,0.31726791,57280.0,57276.0,0.174591]
[1725547401512,0.14268591,57280.0,57278.0,0.174587]
[1725547401750,0.14268591,57280.0,57279.0,0.174584]
[1725547401956,0.125,57280.0,57279.0,0.523752]
[1725547402367,0.13665711,57280.0,57279.0,0.523752]
[1725547402812,0.13665711,57280.0,57277.0,0.349177]
[1725547403023,0.349183,57277.0,57269.0,0.349226]
[1725547403284,0.174593,57276.0,57273.0,0.174601]
[1725547403467,0.18625989,57276.0,57273.0,0.174601]
[1725547403948,0.01166689,57276.0,57265.0,0.349248]
[1725547404203,0.01166689,57276.0,57269.0,0.174613]
[1725547404204,0.0029,57271.0,57269.0,0.174613]
[1725547404431,0.01165869,57270.0,57269.0,0.174613]
[1725547404644,0.01165869,57270.0,57267.0,0.349235]